fUST/lending_fUST_20250220
["ID","MTS","AMOUNT","RATE_DAILY","PERIOD"]
[353677054,1739987461011,-7609.32,0.0001526,2]
[353677056,1739987461020,-663.08,0.0001526,2]
[353677058,1739987461030,-1227.28,0.0001526,2]
[353677060,1739987461040,-885.56,0.0001526,2]
[353677062,1739987461050,-747.78,0.0001526,2]
[353677064,1739987461060,-1164.73,0.0001526,2]
[353677066,1739987461070,-2014.05,0.0001526,2]
[353677068,1739987461081,-146.14994975,0.0001526,2]
[353677084,1739987461271,-500.0,0.00013698,2]
[353677086,1739987461284,-1473.64,0.00013698,2]
[353677088,1739987461294,-26.36,0.00013698,2]
[353677090,1739987461305,-473.64,0.00013698,2]
[353677092,1739987461316,-500.0,0.0001378,2]
[353677094,1739987461325,-1473.64,0.0001378,2]
[353677096,1739987461334,-500.0,0.00013863,2]
[353677098,1739987461343,-500.0,0.00013945,2]
[353677100,1739987461353,-500.0,0.00014027,2]
[353677102,1739987461366,-500.0,0.00014109,2]
[353677104,1739987461375,-393.73662317,0.00014191,2]
[353677110,1739987461467,-19.91141583,0.0001526,2]
[353677111,1739987461479,-488.41863442,0.0001526,2]
[353677112,1739987461488,-1096.82,0.0001526,2]
[353677113,1739987461498,-1560.38,0.0001526,2]
[353677114,1739987461507,-592.73964458,0.0001526,2]
[353677115,1739987461523,-2265.65035542,0.0001526,2]
[353677116,1739987461533,-151.0,0.000153,2]
[353677117,1739987461542,-500.83239552,0.00015321,2]
[353677118,1739987461552,-1500.0,0.00015322,2]
[353677119,1739987461561,-500.95075043,0.00015322,2]
[353677120,1739987461571,-1597.04980234,0.00015322,2]
[353677121,1739987461581,-500.0,0.00015322,2]
[353677122,1739987461591,-621.03,0.00015342,2]
[353677123,1739987461600,-593.21,0.00015342,2]
[353677124,1739987461612,-712.09,0.00015342,2]
[353677125,1739987461621,-691.88,0.00015342,2]
[353677126,1739987461631,-560.83,0.00015342,2]
[353677127,1739987461641,-874.12,0.00015342,2]
[353677128,1739987461651,-500.0,0.00015342,2]
[353677129,1739987461660,-21076.97,0.00015342,2]
[353677130,1739987461670,-500.0,0.00015342,2]
[353677131,1739987461680,-737.9,0.00015342,2]
[353677132,1739987461689,-784.88,0.00015342,2]
[353677133,1739987461699,-2181.14,0.00015342,2]
[353677134,1739987461709,-500.0,0.00015342,2]
[353677135,1739987461718,-888.66,0.00015342,2]
[353677136,1739987461728,-2574.52,0.00015342,2]
[353677137,1739987461737,-832.35,0.00015342,2]
[353677138,1739987461747,-507.41,0.00015342,2]
[353677139,1739987461757,-898.8,0.00015342,2]
[353677140,1739987461766,-5706.29,0.00015342,2]
[353677141,1739987461775,-2071.49,0.00015342,2]
[353677142,1739987461785,-698.55,0.00015342,2]
[353677143,1739987461795,-2407.83,0.00015342,2]
[353677144,1739987461805,-2016.52,0.00015342,2]
[353677145,1739987461814,-1153.98,0.00015342,2]
[353677147,1739987461824,-7609.32,0.00015342,2]
[353677148,1739987461833,-663.08,0.00015342,2]
[353677150,1739987461842,-1227.28,0.00015342,2]
[353677151,1739987461853,-885.56,0.00015342,2]
[353677153,1739987461864,-747.78,0.00015342,2]
[353677155,1739987461874,-1164.73,0.00015342,2]
[353677156,1739987461883,-2014.05,0.00015342,2]
[353677158,1739987461892,-654.48,0.00015342,2]
[353677160,1739987461902,-1096.82,0.00015342,2]
[353677162,1739987461911,-1560.38,0.00015342,2]
[353677164,1739987461921,-2858.39,0.00015342,2]
[353677166,1739987461930,-160.0,0.000154,3]
[353677168,1739987461940,-1000.3801526,0.00015421,2]
[353677171,1739987461950,-250.0,0.00015421,2]
[353677173,1739987461959,-621.03,0.00015424,2]
[353677174,1739987461969,-593.21,0.00015424,2]
[353677177,1739987461979,-712.09,0.00015424,2]
[353677179,1739987461988,-691.88,0.00015424,2]
[353677180,1739987461998,-560.83,0.00015424,2]
[353677183,1739987462008,-874.12,0.00015424,2]
[353677184,1739987462017,-500.0,0.00015424,2]
[353677186,1739987462027,-21076.97,0.00015424,2]
[353677188,1739987462036,-500.0,0.00015424,2]
[353677191,1739987462047,-737.9,0.00015424,2]
[353677193,1739987462058,-784.88,0.00015424,2]
[353677195,1739987462067,-2181.14,0.00015424,2]
[353677197,1739987462076,-492.7357394,0.00015424,2]
[353677199,1739987462086,-888.66,0.00015424,2]
[353677201,1739987462096,-2574.52,0.00015424,2]
[353677203,1739987462106,-832.35,0.00015424,2]
[353677205,1739987462116,-507.41,0.00015424,2]
[353677207,1739987462126,-898.8,0.00015424,2]
[353677209,1739987462135,-5706.29,0.00015424,2]
[353677211,1739987462145,-2071.49,0.00015424,2]
[353677213,1739987462155,-698.55,0.00015424,2]
[353677215,1739987462164,-2407.83,0.00015424,2]
[353677217,1739987462174,-2016.52,0.00015424,2]
[353677219,1739987462184,-1153.98,0.00015424,2]
[353677221,1739987462195,-7609.32,0.00015424,2]
[353677223,1739987462204,-663.08,0.00015424,2]
[353677225,1739987462214,-1227.28,0.00015424,2]
[353677227,1739987462223,-885.56,0.00015424,2]
[353677229,1739987462233,-747.78,0.00015424,2]
[353677231,1739987462242,-1164.73,0.00015424,2]
[353677232,1739987462252,-2014.05,0.00015424,2]
[353677235,1739987462263,-654.48,0.00015424,2]
[353677237,1739987462273,-1096.82,0.00015424,2]
[353677239,1739987462287,-1560.38,0.00015424,2]
[353677241,1739987462297,-2858.39,0.00015424,2]
[353677243,1739987462307,-228.74015766,0.00015442,2]
[353677245,1739987462318,-621.03,0.00015506,2]
[353677247,1739987462328,-593.21,0.00015506,2]
[353677249,1739987462338,-712.09,0.00015506,2]
[353677251,1739987462347,-691.88,0.00015506,2]
[353677252,1739987462358,-560.83,0.00015506,2]
[353677255,1739987462370,-874.12,0.00015506,2]
[353677256,1739987462380,-218.84800158,0.00015506,2]
[353677258,1739987462390,-21076.97,0.00015506,2]
[353677260,1739987462399,-500.0,0.00015506,2]
[353677262,1739987462408,-737.9,0.00015506,2]
[353677265,1739987462418,-784.88,0.00015506,2]
[353677267,1739987462428,-2181.14,0.00015506,2]
[353677268,1739987462437,-888.66,0.00015506,2]
[353677270,1739987462447,-2574.52,0.00015506,2]
[353677272,1739987462456,-832.35,0.00015506,2]
[353677274,1739987462465,-507.41,0.00015506,2]
[353677276,1739987462475,-898.8,0.00015506,2]
[353677278,1739987462484,-5706.29,0.00015506,2]
[353677281,1739987462498,-2071.49,0.00015506,2]
[353677283,1739987462508,-698.55,0.00015506,2]
[353677285,1739987462518,-2407.83,0.00015506,2]
[353677287,1739987462527,-2016.52,0.00015506,2]
[353677289,1739987462536,-1153.98,0.00015506,2]
[353677291,1739987462546,-7609.32,0.00015506,2]
[353677293,1739987462555,-663.08,0.00015506,2]
[353677295,1739987462565,-1227.28,0.00015506,2]
[353677297,1739987462574,-885.56,0.00015506,2]
[353677299,1739987462584,-747.78,0.00015506,2]
[353677301,1739987462594,-1164.73,0.00015506,2]
[353677303,1739987462604,-2014.05,0.00015506,2]
[353677305,1739987462615,-654.48,0.00015506,2]
[353677307,1739987462626,-1096.82,0.00015506,2]
[353677309,1739987462635,-1560.38,0.00015506,2]
[353677311,1739987462645,-2858.39,0.00015506,2]
[353677313,1739987462655,-621.12055816,0.00015589,2]
[353677315,1739987462665,-593.30825166,0.00015589,2]
[353677317,1739987462674,-712.16,0.00015589,2]
[353677319,1739987462684,-691.97,0.00015589,2]
[353677321,1739987462694,-561.00289199,0.00015589,2]
[353677323,1739987462703,-874.2,0.00015589,2]
[353677325,1739987462713,-21077.1302,0.00015589,2]
[353677327,1739987462722,-369.32,0.00015589,2]
[353677329,1739987462732,-737.91445471,0.00015589,2]
[353677331,1739987462742,-784.88991298,0.00015589,2]
[353677333,1739987462751,-2181.24473889,0.00015589,2]
[353677335,1739987462760,-888.78642689,0.00015589,2]
[353677337,1739987462770,-2574.68961166,0.00015589,2]
[353677339,1739987462779,-832.41222728,0.00015589,2]
[353677341,1739987462789,-507.47599199,0.00015589,2]
[353677343,1739987462799,-899.03082446,0.00015589,2]
[353677345,1739987462809,-5706.46155046,0.00015589,2]
[353677347,1739987462819,-2071.51357915,0.00015589,2]
[353677349,1739987462828,-698.75336587,0.00015589,2]
[353677351,1739987462838,-2407.83110362,0.00015589,2]
[353677353,1739987462848,-2016.75225558,0.00015589,2]
[353677355,1739987462857,-1154.07626714,0.00015589,2]
[353677357,1739987462868,-7609.41336621,0.00015589,2]
[353677359,1739987462877,-663.22159546,0.00015589,2]
[353677368,1739987462957,-1227.48244067,0.00015589,2]
[353677370,1739987462968,-885.69901734,0.00015589,2]
[353677372,1739987462978,-747.78100684,0.00015589,2]
[353677374,1739987462988,-1164.93663562,0.00015589,2]
[353677376,1739987462997,-2014.1230646,0.00015589,2]
[353677378,1739987463007,-654.49,0.00015589,2]
[353677380,1739987463016,-1096.94,0.00015589,2]
[353677382,1739987463026,-1560.40947542,0.00015589,2]
[353677384,1739987463036,-2858.39035416,0.00015589,2]
[353677386,1739987463046,-151.0,0.000157,2]
[353677388,1739987463056,-465.0790012,0.00015731,2]
[353677390,1739987463066,-283.091938,0.00015775,2]
[353677392,1739987463076,-800.0,0.00015808,2]
[353677394,1739987463085,-453.73867444,0.00015968,2]
[353677396,1739987463095,-500.0,0.00016,7]
[353677398,1739987463105,-500.0,0.00016,7]
[353677400,1739987463115,-228.74015766,0.00016056,2]
[353677402,1739987463126,-151.0,0.000161,2]
[353677404,1739987463136,-499.0,0.00016164,2]
[353677406,1739987463146,-434.289151,0.000162,2]
[353677408,1739987463157,-434.289151,0.000162,2]
[353677410,1739987463167,-151.0,0.000162,2]
[353677412,1739987463177,-29566.85866635,0.000162,2]
[353677414,1739987463187,-29566.85866632,0.000162,2]
[353677417,1739987463204,-29566.85866632,0.000162,2]
[353677419,1739987463214,-587.0,0.0001642,2]
[353677421,1739987463223,-1000.0,0.00016438,2]
[353677423,1739987463233,-1000.0,0.00016438,2]
[353677424,1739987463243,-397.53754396,0.00016438,2]
[353677427,1739987463253,-12000.0,0.00016438,2]
[353677429,1739987463264,-151.0,0.000165,2]
[353677430,1739987463275,-465.00395006,0.00016518,2]
[353677432,1739987463288,-2000.0,0.0001652,2]
[353677434,1739987463298,-2000.0,0.0001652,2]
[353677436,1739987463307,-2001.66515834,0.0001662,2]
[353677439,1739987463318,-228.74015766,0.00016671,2]
[353677440,1739987463328,-160.0,0.000167,4]
[353677442,1739987463338,-29566.85866632,0.000168,2]
[353677445,1739987463348,-151.0,0.000169,2]
[353677447,1739987463358,-500.0,0.00017,7]
[353677449,1739987463370,-500.0,0.00017,7]
[353677450,1739987463379,-500.0,0.00017,7]
[353677452,1739987463389,-500.0,0.00017,7]
[353677454,1739987463398,-500.0,0.00017,7]
[353677456,1739987463408,-500.0,0.00017,7]
[353677458,1739987463418,-500.0,0.00017,7]
[353677460,1739987463427,-500.0,0.00017,7]
[353677462,1739987463436,-500.0,0.00017,7]
[353677464,1739987463445,-566.69,0.00017,7]
[353677466,1739987463455,-14092.53,0.00017,2]
[353677468,1739987463465,-800.0,0.00017178,2]
[353677470,1739987463475,-151.0,0.000172,2]
[353677472,1739987463484,-228.74015766,0.00017285,2]
[353677474,1739987463495,-557.1188801,0.0001747,2]
[353677476,1739987463504,-557.1188801,0.00017476,2]
[353677478,1739987463514,-1114.2377602,0.00017494,2]
[353677480,1739987463523,-13275.53870192,0.00017549,2]
[353677482,1739987463534,-434.289151,0.00017599,2]
[353677484,1739987463543,-434.289151,0.00017599,2]
[353677486,1739987463553,-151.0,0.00017599,2]
[353677488,1739987463563,-434.289151,0.000176,2]
[353677490,1739987463572,-434.289151,0.000176,2]
[353677492,1739987463581,-151.0,0.000176,2]
[353677494,1739987463590,-151.0,0.000176,2]
[353677496,1739987463601,-500.0,0.000176,2]
[353677498,1739987463612,-160.62562072,0.000176,2]
[353677500,1739987463621,-150.26,0.000176,2]
[353677502,1739987463631,-150.26,0.000176,2]
[353677504,1739987463640,-300.21963662,0.000176,2]
[353677506,1739987463650,-150.31097465,0.000176,2]
[353677508,1739987463659,-500.0,0.000176,2]
[353677510,1739987463669,-150.26,0.000176,2]
[353677512,1739987463679,-150.26,0.000176,2]
[353677514,1739987463688,-809.0,0.000176,2]
[353677516,1739987463698,-530.0,0.000176,2]
[353677518,1739987463707,-150.26,0.000176,2]
[353677520,1739987463717,-500.0,0.000176,2]
[353677522,1739987463726,-150.26,0.000176,2]
[353677524,1739987463736,-150.26,0.000176,2]
[353677526,1739987463746,-2500.0,0.00017602,2]
[353677528,1739987463755,-2500.0,0.0001761,2]
[353677530,1739987463766,-2500.0,0.00017619,2]
[353677532,1739987463775,-2500.0,0.00017628,2]
[353677534,1739987463784,-321.0,0.0001763,2]
[353677536,1739987463794,-2500.0,0.00017637,2]
[353677538,1739987463804,-3472.6119723,0.00017639,2]
[353677540,1739987463814,-193.83841,0.0001764,15]
[353677542,1739987463823,-2500.0,0.00017646,2]
[353677544,1739987463833,-2500.0,0.00017654,2]
[353677546,1739987463843,-2500.0,0.00017654,2]
[353677548,1739987463852,-1000.0,0.00017738,2]
[353677550,1739987463862,-347.7143422,0.00017742,2]
[353677552,1739987463872,-263.376,0.00017759,2]
[353677554,1739987463881,-1971.0,0.00017759,2]
[353677556,1739987463891,-545.771,0.00017759,2]
[353677558,1739987463901,-2292.0,0.00017759,2]
[353677560,1739987463911,-396.0,0.00017759,2]
[353677561,1739987463920,-150.0,0.00017759,2]
[353677563,1739987463930,-1000.0,0.00017786,2]
[353677566,1739987463940,-934.0,0.000178,2]
[353677568,1739987463950,-500.0,0.00017874,2]
[353677569,1739987463959,-150.26,0.00017874,2]
[353677571,1739987463969,-150.26,0.00017874,2]
[353677573,1739987463979,-500.0,0.00017874,2]
[353677575,1739987463989,-150.26,0.00017874,2]
[353677577,1739987463999,-809.0,0.00017874,2]
[353677580,1739987464009,-530.0,0.00017874,2]
[353677582,1739987464020,-500.0,0.00017874,2]
[353677584,1739987464030,-150.26,0.00017874,2]
[353677586,1739987464040,-150.26,0.00017874,2]
[353677588,1739987464050,-151.0,0.00017874,2]
[353677590,1739987464060,-1539.074899,0.00017874,2]
[353677592,1739987464069,-1539.074899,0.00017874,2]
[353677594,1739987464079,-1049.066856,0.00017874,2]
[353677596,1739987464088,-1049.066856,0.00017874,2]
[353677598,1739987464098,-18958.26702569,0.000179,7]
[353677599,1739987464107,-228.74015766,0.000179,2]
[353677601,1739987464118,-151.0,0.000179,2]
[353677603,1739987464128,-151.0,0.000179,2]
[353677605,1739987464138,-7438.69753278,0.000179,7]
[353677607,1739987464148,-4737.3458,0.000179,2]
[353677610,1739987464158,-4737.3458,0.000179,2]
[353677612,1739987464168,-1159.535957,0.000179,2]
[353677613,1739987464177,-1159.535957,0.000179,2]
[353677615,1739987464186,-29566.85866632,0.000179,2]
[353677617,1739987464195,-2200.0,0.0001796,2]
[353677619,1739987464205,-5000.0,0.00017963,2]
[353677621,1739987464215,-5000.0,0.00017963,2]
[353677624,1739987464225,-5000.0,0.00017963,2]
[353677625,1739987464235,-5000.0,0.00017963,2]
[353677627,1739987464245,-5000.0,0.00017963,2]
[353677629,1739987464254,-1000.0,0.00017973,2]
[353677631,1739987464264,-823.0,0.00017995,2]
[353677633,1739987464276,-1283.6860147,0.00017998,2]
[353677635,1739987464290,-296.30711892,0.00017998,2]
[353677644,1739987464367,-160.0,0.00017999,2]
[353677646,1739987464377,-160.0,0.00017999,2]
[353677648,1739987464388,-173142.56421889,0.00018,5]
[353677650,1739987464398,-45832.71490278,0.00018,5]
[353677652,1739987464408,-2603947.85927386,0.00018,15]
[353677653,1739987464563,-500.0,0.00013698,2]
[353677654,1739987464573,-500.0,0.00013698,2]
[353677656,1739987464583,-500.0,0.00013698,2]
[353677657,1739987464592,-500.0,0.0001378,2]
[353677659,1739987464602,-500.0,0.0001378,2]
[353677661,1739987464613,-1473.64,0.00013863,2]
[353677663,1739987464622,-1473.64,0.00013945,2]
[353677665,1739987464632,-1473.64,0.00014027,2]
[353677667,1739987464642,-1473.64,0.00014109,2]
[353677669,1739987464652,-1473.64,0.00014191,2]
[353677671,1739987464662,-1473.64,0.00014273,2]
[353677673,1739987464671,-1473.64,0.00014356,2]
[353677675,1739987464681,-1473.64,0.00014438,2]
[353677677,1739987464691,-1473.64,0.0001452,2]
[353677679,1739987464700,-234483.39853519,0.00018,15]
[353679850,1739987744974,269.575347,9.041e-05,2]
[353679902,1739988498467,574.871,0.00018157,60]
[353679933,1739988632895,-983.20901839,0.0001172,2]
[353679935,1739988632905,-300.0,0.00012923,2]
[353679937,1739988632915,-15095.03951223,0.00012924,2]
[353680415,1739988638424,-4176.23256776,0.00012924,2]
[353680417,1739988638437,-579.938,0.00012924,2]
[353680420,1739988638451,-5048.78992001,0.00012924,2]
[353680422,1739988638462,-800.0,0.00013068,2]
[353680424,1739988638471,-294.94055329,0.00013614,2]
[353680426,1739988638486,-176.65458819,0.00013672,2]
[353680428,1739988638496,-500.0,0.00013672,2]
[353680429,1739988638506,-500.0,0.00013673,2]
[353680432,1739988638516,-403.79260333,0.00013673,2]
[353680433,1739988638527,-251.50138872,0.00013673,2]
[353680435,1739988638536,-500.0,0.00013673,2]
[353680437,1739988638546,-500.0,0.00013673,2]
[353680439,1739988638556,-649.55008775,0.00013673,2]
[353680441,1739988638567,-500.0,0.00013673,2]
[353680444,1739988638578,-500.0,0.00013673,2]
[353680446,1739988638589,-498.73493512,0.00013673,2]
[353680448,1739988638598,-500.0,0.00013673,2]
[353680449,1739988638608,-500.0,0.00013673,2]
[353680451,1739988638618,-905.76027442,0.0001368,2]
[353680453,1739988638628,-197.57920618,0.00013697,2]
[353680456,1739988638639,-500.0,0.00013697,2]
[353680457,1739988638651,-218.06488151,0.00013698,2]
[353680459,1739988638661,-217.81357733,0.00013698,2]
[353680462,1739988638672,-451.8368394,0.00013698,2]
[353680463,1739988638681,-500.0,0.00013698,2]
[353680465,1739988638691,-500.0,0.00013698,2]
[353680467,1739988638700,-500.0,0.00013698,2]
[353680481,1739988638824,-500.0,0.00013698,2]
[353680484,1739988638835,-500.0,0.00013698,2]
[353680486,1739988638845,-482.02812297,0.00013698,2]
[353680488,1739988638855,-500.0,0.00013698,2]
[353680489,1739988638864,-500.0,0.00013698,2]
[353680492,1739988638874,-500.0,0.00013698,2]
[353680493,1739988638883,-500.0,0.00013698,2]
[353680496,1739988638893,-500.0,0.00013698,2]
[353680497,1739988638917,-500.0,0.00013698,2]
[353680499,1739988638926,-500.0,0.00013698,2]
[353680501,1739988638935,-500.0,0.00013698,2]
[353680503,1739988638945,-500.0,0.00013698,2]
[353680506,1739988638955,-500.0,0.00013698,2]
[353680507,1739988638965,-502.132,0.00013698,2]
[353680510,1739988638975,-500.0,0.00013698,2]
[353680512,1739988638985,-500.0,0.00013698,2]
[353680514,1739988638995,-500.21296077,0.00013698,2]
[353680516,1739988639004,-500.0,0.00013698,2]
[353680518,1739988639014,-501.65304826,0.00013698,2]
[353680520,1739988639024,-500.0,0.00013698,2]
[353680521,1739988639034,-500.0,0.00013698,2]
[353680524,1739988639044,-178.82496126,0.00013698,2]
[353680526,1739988639054,-500.88818774,0.00013698,2]
[353680527,1739988639064,-500.0,0.00013698,2]
[353680530,1739988639074,-500.0,0.00013698,2]
[353680531,1739988639084,-500.0,0.00013698,2]
[353680533,1739988639093,-363.90431767,0.00013698,2]
[353680535,1739988639103,-500.59758062,0.00013698,2]
[353680538,1739988639113,-500.0,0.00013698,2]
[353680540,1739988639122,-501.84426566,0.00013698,2]
[353680541,1739988639131,-500.0,0.00013698,2]
[353680544,1739988639143,-500.0,0.00013698,2]
[353680546,1739988639152,-500.0,0.00013698,2]
[353680548,1739988639162,-500.0,0.00013698,2]
[353680550,1739988639172,-500.0,0.00013698,2]
[353680552,1739988639185,-509.19372021,0.00013698,2]
[353680554,1739988639194,-500.0,0.00013698,2]
[353680556,1739988639203,-500.0,0.00013698,2]
[353680558,1739988639213,-500.0,0.00013698,2]
[353680560,1739988639223,-1000.0,0.00013698,2]
[353680562,1739988639233,-500.0,0.00013698,2]
[353680564,1739988639242,-500.0,0.00013698,2]
[353680566,1739988639252,-500.0,0.00013698,2]
[353680568,1739988639262,-503.49133965,0.00013698,2]
[353680570,1739988639271,-500.0,0.00013698,2]
[353680572,1739988639280,-225.70498785,0.00013698,2]
[353680573,1739988639289,-500.0,0.00013698,2]
[353680576,1739988639299,-500.0,0.00013698,2]
[353680578,1739988639309,-161.01362864,0.00013698,2]
[353680579,1739988639318,-500.0,0.00013698,2]
[353680582,1739988639327,-500.0,0.00013698,2]
[353680584,1739988639337,-500.0,0.00013698,2]
[353680586,1739988639346,-500.0,0.00013698,2]
[353680588,1739988639356,-500.0,0.00013698,2]
[353680589,1739988639368,-500.0,0.00013698,2]
[353680592,1739988639379,-500.0,0.00013698,2]
[353680594,1739988639388,-500.0,0.00013698,2]
[353680596,1739988639400,-174.74641207,0.00013698,2]
[353680597,1739988639411,-607.68139883,0.00013698,2]
[353680599,1739988639421,-500.0,0.00013698,2]
[353680601,1739988639433,-500.0,0.00013698,2]
[353680603,1739988639442,-500.0,0.00013698,2]
[353680605,1739988639452,-500.0,0.00013698,2]
[353680608,1739988639462,-500.0,0.00013698,2]
[353680610,1739988639472,-500.0,0.00013698,2]
[353680612,1739988639482,-500.0,0.00013698,2]
[353680613,1739988639491,-500.0,0.00013698,2]
[353680615,1739988639500,-607.32704928,0.00013698,2]
[353680617,1739988639510,-500.0,0.00013698,2]
[353680619,1739988639520,-500.0,0.00013698,2]
[353680621,1739988639529,-500.0,0.00013698,2]
[353680623,1739988639539,-500.0,0.00013698,2]
[353680625,1739988639548,-500.0,0.00013698,2]
[353680627,1739988639558,-471.46162796,0.00013698,2]
[353680629,1739988639567,-448.57266351,0.00013698,2]
[353680631,1739988639578,-220.2245211,0.00013698,2]
[353680633,1739988639587,-500.0,0.00013698,2]
[353680635,1739988639596,-508.58115491,0.00013698,2]
[353680637,1739988639606,-500.0,0.00013698,2]
[353680639,1739988639616,-500.0,0.00013698,2]
[353680641,1739988639627,-500.0,0.00013698,2]
[353680643,1739988639637,-502.59154074,0.00013698,2]
[353680645,1739988639647,-500.0,0.00013698,2]
[353680647,1739988639659,-500.0,0.00013698,2]
[353680649,1739988639669,-500.0,0.00013698,2]
[353680651,1739988639678,-500.0,0.00013698,2]
[353680653,1739988639688,-500.0,0.00013698,2]
[353680655,1739988639699,-500.0,0.00013698,2]
[353680657,1739988639709,-366.6296609,0.00013698,2]
[353680659,1739988639719,-500.0,0.00013698,2]
[353680661,1739988639728,-501.43737311,0.00013698,2]
[353680663,1739988639738,-469.29098641,0.00013698,2]
[353680665,1739988639747,-500.0,0.00013698,2]
[353680667,1739988639756,-500.0,0.00013698,2]
[353680669,1739988639765,-503.42217947,0.00013698,2]
[353680671,1739988639774,-500.0,0.00013698,2]
[353680672,1739988639783,-506.14088235,0.00013698,2]
[353680674,1739988639792,-500.0,0.00013698,2]
[353680676,1739988639802,-500.0,0.00013698,2]
[353680678,1739988639813,-504.73725796,0.00013698,2]
[353680680,1739988639822,-500.0,0.00013698,2]
[353680683,1739988639831,-614.15177362,0.00013698,2]
[353680685,1739988639842,-500.0,0.00013698,2]
[353680687,1739988639851,-500.0,0.00013698,2]
[353680689,1739988639860,-500.0,0.00013698,2]
[353680691,1739988639870,-500.0,0.00013698,2]
[353680693,1739988639879,-500.0,0.00013698,2]
[353680695,1739988639889,-500.0,0.00013698,2]
[353680697,1739988639898,-620.02033869,0.00013698,2]
[353680699,1739988639907,-500.0,0.00013698,2]
[353680701,1739988639917,-502.97796487,0.00013698,2]
[353680703,1739988639927,-329.21464785,0.00013698,2]
[353680705,1739988639937,-500.0,0.00013698,2]
[353680707,1739988639946,-502.39635643,0.00013698,2]
[353680709,1739988639955,-500.0,0.00013698,2]
[353680711,1739988639967,-500.0,0.00013698,2]
[353680712,1739988639976,-741.51,0.00013698,2]
[353680715,1739988639987,-500.0,0.00013698,2]
[353680717,1739988639998,-646.12,0.00013698,2]
[353680718,1739988640006,-500.0,0.00013698,2]
[353680720,1739988640016,-500.0,0.00013698,2]
[353680722,1739988640025,-500.0,0.00013698,2]
[353680724,1739988640035,-500.0,0.00013698,2]
[353680726,1739988640044,-500.0,0.00013698,2]
[353680728,1739988640053,-500.0,0.00013698,2]
[353680731,1739988640064,-500.0,0.00013698,2]
[353680733,1739988640073,-674.11,0.00013698,2]
[353680734,1739988640082,-500.0,0.00013698,2]
[353680736,1739988640092,-500.0,0.00013698,2]
[353680738,1739988640101,-500.0,0.00013698,2]
[353680740,1739988640111,-500.0,0.00013698,2]
[353680742,1739988640122,-500.0,0.00013698,2]
[353680744,1739988640131,-503.79868617,0.00013698,2]
[353680746,1739988640141,-500.0,0.00013698,2]
[353680748,1739988640150,-500.0,0.00013698,2]
[353680750,1739988640159,-289.23736409,0.00013698,2]
[353680752,1739988640169,-500.0,0.00013698,2]
[353680754,1739988640179,-500.0,0.00013698,2]
[353680756,1739988640188,-500.0,0.00013698,2]
[353680758,1739988640197,-500.0,0.00013698,2]
[353680760,1739988640207,-500.0,0.00013698,2]
[353680763,1739988640217,-500.0,0.00013698,2]
[353680765,1739988640227,-500.0,0.00013698,2]
[353680767,1739988640236,-502.18088427,0.00013698,2]
[353680769,1739988640245,-500.0,0.00013698,2]
[353680770,1739988640254,-500.0,0.00013698,2]
[353680772,1739988640264,-500.0,0.00013698,2]
[353680774,1739988640273,-500.0,0.00013698,2]
[353680776,1739988640282,-500.0,0.00013698,2]
[353680778,1739988640292,-500.0,0.00013698,2]